bitfinex-derivatives/quotes_ETHF0:USTF0_20250105
["timestamp","ask_amount","ask_price","bid_price","bid_amount"]
[1736096682774,0.66104674,3632.1,3632.0,0.24785]
[1736096682975,0.66104674,3632.1,3632.0,1.24892124]
[1736096683272,0.41319674,3632.1,3632.0,1.24892124]
[1736096683874,0.41319674,3632.1,3632.0,1.68472124]
[1736096684466,3.657745,3632.1,3632.0,1.68472124]
[1736096686173,3.905595,3632.1,3632.0,1.68472124]
[1736096688177,0.41319674,3632.1,3632.0,1.68472124]
[1736096689474,3.24693288,3632.2,3632.0,1.43687124]
[1736096689675,3.24693288,3632.2,3632.1,1.24892124]
[1736096691782,3.24693288,3632.2,3632.1,1.65662124]
[1736096693285,3.66012962,3632.3,3632.1,2.40984248]
[1736096693585,3.66012962,3632.3,3632.2,0.24784]
[1736096694587,4.32186847,3632.5,3632.4,0.24783]
[1736096694588,3.24693288,3632.5,3632.4,0.24783]
[1736096694796,3.24693288,3632.5,3632.4,1.24890124]
[1736096696082,3.6600594,3632.5,3632.4,1.24890124]
[1736096697490,3.24693288,3632.5,3632.4,1.24890124]
[1736096697886,3.24693288,3632.5,3632.4,1.66810124]
[1736096700095,3.9078694,3632.6,3632.5,0.24782]
[1736096700287,3.9078694,3632.6,3632.5,1.32482]
[1736096700689,3.6600594,3632.6,3632.5,1.32482]
[1736096701194,3.9078694,3632.6,3632.5,1.32482]
[1736096702489,3.6600594,3632.6,3632.5,1.32482]
[1736096704082,0.24781,3632.7,3632.5,1.32482]
[1736096704292,0.24781,3632.7,3632.6,1.00107124]
[1736096705896,3.90726638,3632.7,3632.6,1.00107124]
[1736096707598,3.90726638,3632.7,3632.6,1.24888124]
[1736096707997,3.90726638,3632.7,3632.6,1.00107124]
[1736096708496,3.49414775,3632.7,3632.6,1.00107124]
[1736096711699,3.49414775,3632.7,3632.6,1.24888124]
[1736096712998,3.24633775,3632.7,3632.6,1.24888124]
[1736096713897,3.24633775,3632.7,3632.6,1.00107124]
[1736096714099,3.24633775,3632.7,3632.6,1.24888124]
[1736096714501,3.24633775,3632.7,3632.6,1.24675031]
[1736096715898,3.24633775,3632.7,3632.6,4.45455031]
[1736096716102,3.24633775,3632.7,3632.6,4.87315031]
[1736096716403,3.24633775,3632.8,3632.7,0.24781]
[1736096718205,3.24633775,3633.2,3632.7,4.32711823]
[1736096718404,3.24633775,3633.2,3633.1,1.24885124]
[1736096719099,3.49410775,3633.2,3633.1,1.24885124]
[1736096719899,3.24633775,3633.2,3633.1,1.24885124]
[1736096720301,0.24777,3633.2,3633.1,2.07807124]
[1736096721405,3.92600775,3633.3,3633.2,0.24777]
[1736096721807,3.67823775,3633.3,3633.2,0.24777]
[1736096722100,3.92600775,3633.3,3633.2,0.24777]
[1736096723006,0.67967,3633.3,3633.1,2.32585124]
[1736096723807,3.24633775,3633.4,3633.2,1.00107124]
[1736096724007,3.24633775,3633.4,3633.3,1.07307]
[1736096724209,3.24633775,3633.4,3633.3,2.07414124]
[1736096725501,3.24633775,3633.4,3633.3,1.65504124]
[1736096725710,1.305,3633.5,3633.3,1.40727124]
[1736096725904,1.305,3633.5,3633.4,0.24776]
[1736096726104,2.30607124,3633.5,3633.0,3.2078]
[1736096726298,0.24778,3633.2,3633.1,2.07807124]
[1736096727105,3.24633775,3633.4,3633.1,2.07807124]
[1736096727410,3.24633775,3633.4,3633.3,1.24884124]
[1736096728002,3.24633775,3633.4,3633.3,2.24991248]
[1736096728207,2.16104569,3633.4,3633.3,2.24991248]
[1736096729612,5.36884569,3633.9,3633.8,0.24773]
[1736096729809,5.36884569,3633.9,3633.8,1.32473]
[1736096730306,5.36884569,3633.9,3633.8,2.32580124]
[1736096731111,2.16104569,3633.9,3633.8,3.54047546]
[1736096731413,2.16104569,3634.0,3633.9,0.24772]
[1736096731815,2.40876569,3634.0,3633.9,0.24772]
[1736096732215,2.16104569,3634.0,3633.9,0.24772]
[1736096732712,2.16104569,3634.0,3633.8,3.29274546]
[1736096732713,0.24772,3634.0,3633.8,3.54047546]
[1736096732912,0.24772,3633.9,3633.8,3.54047546]
[1736096733314,2.58654569,3634.1,3633.8,3.54047546]
[1736096733515,0.67512,3634.0,3633.9,0.24772]
[1736096733714,0.67512,3634.0,3633.8,3.29274546]
[1736096733918,0.67512,3634.0,3633.8,3.54047546]
[1736096734518,0.4274,3634.0,3633.8,3.29274546]
[1736096734715,0.24772,3633.9,3633.8,1.077]
[1736096736123,0.24774,3633.7,3633.6,3.2078]
[1736096736313,0.24774,3633.7,3633.6,4.2848]
[1736096736719,0.24774,3633.7,3633.6,4.53255]
[1736096737019,0.24774,3633.7,3633.6,4.2848]
[1736096737617,0.24774,3633.7,3633.6,4.53255]
[1736096738419,2.58844569,3634.0,3633.7,0.24773]
[1736096738420,0.24773,3633.9,3633.7,0.24773]
[1736096738817,0.24773,3633.9,3633.8,0.4282]
[1736096743225,0.24773,3633.9,3633.8,0.67593]
[1736096743722,0.24773,3633.9,3633.8,0.4282]
[1736096746429,0.4274,3634.0,3633.8,0.4282]
[1736096746630,0.4274,3634.0,3633.8,2.89167546]
[1736096746823,0.24772,3633.9,3633.8,2.89167546]
[1736096747023,0.4255,3634.1,3633.9,0.24772]
[1736096747223,0.24772,3634.0,3633.8,2.89167546]
[1736096747926,0.24772,3634.0,3633.9,0.24772]
[1736096749327,0.4255,3634.1,3633.8,2.64394546]
[1736096749631,0.24772,3634.0,3633.9,0.24772]
[1736096750127,0.24772,3634.0,3633.8,2.64394546]
[1736096750333,0.24772,3634.0,3633.8,2.89167546]
[1736096750833,0.24772,3634.0,3633.8,2.64394546]
[1736096751131,0.24772,3634.0,3633.9,1.24764229]
[1736096751329,0.41,3634.2,3633.9,0.99992229]
[1736096751525,0.41,3634.2,3633.8,0.4282]
[1736096751526,0.6577,3634.2,3634.1,0.99992229]
[1736096751837,8.52710906,3634.3,3634.1,0.99992229]
[1736096752033,8.52710906,3634.3,3634.2,0.2477]
[1736096752333,8.52710906,3634.3,3634.2,0.6753]
[1736096752635,8.27940906,3634.3,3634.2,0.6753]
[1736096753031,7.1918268,3634.3,3634.2,0.6753]
[1736096753229,7.1918268,3634.3,3634.2,1.1225]
[1736096753734,2.95018314,3634.3,3634.2,1.1225]
[1736096755434,2.70248314,3634.3,3634.2,1.1225]
[1736096756333,0.54372765,3634.3,3634.2,1.1225]
[1736096758732,0.79142765,3634.3,3634.2,1.1225]
[1736096759039,2.70343741,3634.3,3634.2,1.1225]
[1736096760430,2.95113741,3634.3,3634.2,1.1225]
[1736096760632,0.79142765,3634.3,3634.2,0.8748]
[1736096760937,0.79142765,3634.3,3634.2,1.1225]
[1736096761240,0.54372765,3634.3,3634.2,1.1225]
[1736096761934,0.79142765,3634.3,3634.2,1.1225]
[1736096762736,0.54372765,3634.3,3634.2,1.1225]
[1736096763236,2.15970976,3634.4,3634.2,0.8748]
[1736096763434,2.15970976,3634.4,3634.3,2.32362229]
[1736096764538,2.40739976,3634.4,3634.3,2.32362229]
[1736096764834,2.15970976,3634.4,3634.3,2.32362229]
[1736096765236,2.40739976,3634.4,3634.3,2.32362229]
[1736096765435,2.40739976,3634.4,3634.3,2.07592229]
[1736096765642,2.40739976,3634.4,3634.3,2.32362229]
[1736096765830,2.40739976,3634.4,3634.3,2.07592229]
[1736096766031,2.85459976,3634.4,3634.3,2.07592229]
[1736096767036,0.69489,3634.4,3634.3,2.07592229]
[1736096768032,3.94122775,3634.4,3634.3,2.07592229]
[1736096768233,3.69353775,3634.4,3634.2,0.4276]
[1736096768437,0.2477,3634.3,3634.2,0.99992229]
[1736096768638,0.2477,3634.3,3634.2,2.07592229]
[1736096770029,0.2477,3634.3,3634.2,0.99992229]
[1736096770434,3.49403775,3634.3,3634.2,0.99992229]
[1736096771738,0.66065136,3634.3,3634.2,0.99992229]
[1736096773434,0.2477,3634.3,3634.2,0.99992229]
[1736096774838,4.98910169,3634.3,3634.2,0.99992229]
[1736096775943,0.66065136,3634.3,3634.2,0.99992229]
[1736096776940,0.41295136,3634.3,3634.2,0.99992229]
[1736096777137,0.41295136,3634.3,3634.2,1.24762229]
[1736096777340,0.41295136,3634.3,3634.2,1.67982229]
[1736096778741,3.2470621,3634.3,3634.2,1.67982229]
[1736096782747,3.2470621,3634.3,3634.2,1.24762229]
[1736096782949,3.90771346,3634.3,3634.2,0.99992229]
[1736096783147,4.34081346,3634.3,3634.2,0.99992229]
[1736096786055,1.09375136,3634.3,3634.2,0.99992229]
[1736096786749,1.09375136,3634.3,3634.2,1.24762229]
[1736096787355,0.6808,3634.3,3634.2,1.24762229]
[1736096788454,1.09375136,3634.3,3634.2,1.24762229]
[1736096789160,1.09375136,3634.3,3634.2,0.99992229]
[1736096790257,1.09375136,3634.3,3634.2,1.24762229]
[1736096790448,1.09375136,3634.3,3634.2,0.99992229]
[1736096791049,1.09375136,3634.3,3634.2,1.24762229]
[1736096791255,5.42220169,3634.3,3634.2,1.24762229]
[1736096791558,5.42220169,3634.3,3634.2,0.99992229]
[1736096791860,5.42220169,3634.3,3634.2,1.24762229]
[1736096794057,5.42220169,3634.3,3634.2,0.99992229]
[1736096794856,5.17450169,3634.3,3634.1,4.32711823]
[1736096795055,0.6835,3634.2,3634.1,4.32711823]
[1736096796057,10.48690869,3634.2,3634.0,2.07592229]
[1736096796254,0.67021,3634.1,3634.0,2.07592229]
[1736096797456,10.72131869,3634.1,3634.0,2.07592229]
[1736096801457,10.72131869,3634.1,3634.0,2.32364229]
[1736096803357,5.41540992,3634.1,3634.0,2.32364229]
[1736096804769,5.00245856,3634.1,3634.0,2.32364229]
[1736096806467,5.16769992,3634.1,3634.0,2.32364229]
[1736096807370,5.41540992,3634.1,3634.0,2.32364229]
[1736096807572,5.16769992,3634.1,3634.0,2.32364229]
[1736096809466,4.74519992,3634.1,3634.0,2.32364229]
[1736096810371,3.24875343,3634.1,3634.0,6.3414088]
[1736096811971,4.33224856,3634.2,3634.1,0.24771]
[1736096812169,4.33224856,3634.2,3634.1,1.65503229]
[1736096813267,4.33224856,3634.3,3634.1,5.73234543]
[1736096813468,4.33224856,3634.3,3634.2,0.2477]
[1736096817168,4.74519992,3634.3,3634.2,0.2477]
[1736096818475,0.41295136,3634.3,3634.2,4.57272314]
[1736096822771,4.74519992,3634.3,3634.2,4.57272314]
[1736096823575,4.74519992,3634.3,3634.2,4.32502314]
[1736096823768,4.99289992,3634.3,3634.2,4.32502314]
[1736096825074,4.99289992,3634.3,3634.1,5.57265543]
[1736096825075,0.2477,3634.2,3634.1,5.57265543]
[1736096826477,4.99289992,3634.2,3634.1,5.32494543]
[1736096826665,4.99289992,3634.2,3634.1,5.57265543]
[1736096828982,4.74519992,3634.2,3634.1,5.57265543]
[1736096830478,4.74519992,3634.2,3634.1,1.24763229]
[1736096830876,0.66065136,3634.2,3634.1,5.26594732]
[1736096832584,0.66065136,3634.2,3634.1,1.24763229]
[1736096833582,0.41295136,3634.2,3634.1,1.24763229]
[1736096833779,0.41295136,3634.2,3634.1,5.5732975]
[1736096833980,0.66065136,3634.2,3634.1,5.5732975]
[1736096834280,0.41295136,3634.2,3634.1,5.5732975]
[1736096834679,0.41295136,3634.2,3634.1,6.6492975]
[1736096835083,4.57994856,3634.3,3634.1,6.4015875]
[1736096835084,4.99289992,3634.3,3634.1,6.4015875]
[1736096835283,4.74519992,3634.3,3634.2,0.2477]
[1736096835474,4.99289992,3634.3,3634.2,0.2477]
[1736096835882,4.74519992,3634.3,3634.2,0.2477]
[1736096836780,4.74519992,3634.3,3634.2,4.57336521]
[1736096838086,3.24887236,3634.3,3634.2,10.75640341]
[1736096842080,3.24887236,3634.3,3634.2,4.26572606]
[1736096842283,3.24887236,3634.3,3634.2,5.26564835]
[1736096842481,3.93977236,3634.3,3634.2,5.01794835]
[1736096842985,3.93977236,3634.3,3634.2,4.01802606]
[1736096843381,6.18832221,3634.3,3634.1,4.32491272]
[1736096843681,0.6878,3634.2,3634.1,4.32491272]
[1736096844886,0.6878,3634.2,3633.8,2.07492229]
[1736096844887,5.08007504,3634.2,3633.8,2.07492229]
[1736096845084,1.43712229,3634.1,3633.7,5.32483501]
[1736096845286,0.24773,3633.8,3633.7,5.32483501]
[1736096846886,4.99191948,3633.8,3633.7,0.99992229]
[1736096850687,4.74418948,3633.8,3633.7,0.99992229]
[1736096850893,4.99191948,3633.8,3633.7,1.24766229]
[1736096851383,0.66068136,3633.8,3633.7,1.24766229]
[1736096851586,0.66068136,3633.8,3633.7,0.99992229]
[1736096852987,0.41295136,3633.8,3633.7,1.24766229]
[1736096855191,3.65798595,3633.8,3633.7,1.24766229]
[1736096855890,3.65798595,3633.8,3633.7,1.68646229]
[1736096856288,3.90571595,3633.9,3633.7,1.68646229]
[1736096856692,3.90571595,3633.9,3633.8,0.68083]
[1736096856995,3.65798595,3633.9,3633.8,0.68083]
[1736096857488,3.65798595,3633.9,3633.8,3.88863]
[1736096858196,3.65798595,3634.0,3633.9,0.24772]
[1736096858492,3.65798595,3634.0,3633.9,1.24764229]
[1736096859388,4.57894812,3634.2,3634.1,0.24771]
[1736096859389,2.41058077,3634.2,3634.1,0.24771]
[1736096859687,2.41058077,3634.2,3634.1,1.24763229]
[1736096860390,2.16287077,3634.2,3634.1,1.24763229]
[1736096860796,3.91743459,3634.3,3634.1,1.24763229]
[1736096861093,3.91743459,3634.3,3634.2,1.076]
[1736096862096,5.41660423,3634.3,3634.2,1.076]
[1736096863797,5.00363812,3634.3,3634.2,1.076]
[1736096864999,5.41660423,3634.3,3634.2,1.076]
[1736096865692,5.41660423,3634.3,3634.2,1.5235]
[1736096869894,1.08536611,3634.3,3634.2,1.5235]
[1736096870790,1.08536611,3634.3,3634.2,0.4475]
[1736096871198,4.33023412,3634.3,3634.2,0.4475]
[1736096872599,0.66066611,3634.3,3634.2,0.4475]
[1736096873797,0.2477,3634.3,3634.2,0.4475]
[1736096875100,3.9055617,3634.3,3634.2,0.4475]
[1736096876198,0.66066611,3634.3,3634.2,0.4475]
[1736096877497,0.2477,3634.3,3634.2,0.4475]
[1736096878799,3.90567071,3634.3,3634.2,0.4475]
[1736096879797,3.65797071,3634.3,3634.2,0.6952]
[1736096880296,3.65797071,3634.3,3634.2,1.1119]
[1736096881800,4.3762946,3634.4,3634.3,0.2477]
[1736096881996,4.1286046,3634.4,3634.3,0.2477]
[1736096883104,1.29653708,3634.4,3634.3,0.2477]
[1736096884193,0.8836,3634.4,3634.3,0.2477]
[1736096884594,1.13129,3634.4,3634.3,0.2477]
[1736096885097,0.8836,3634.4,3634.3,0.2477]
[1736096885495,0.8836,3634.4,3634.3,1.24762229]
[1736096885801,0.4423,3634.4,3634.3,1.24762229]
[1736096886010,5.1864752,3634.4,3634.3,1.24762229]
[1736096886301,4.7441752,3634.4,3634.3,1.24762229]
[1736096888608,0.41293708,3634.4,3634.3,1.24762229]
[1736096889810,4.7441752,3634.4,3634.3,1.24762229]
[1736096891209,0.41293708,3634.4,3634.3,1.24762229]
[1736096892803,4.7441752,3634.4,3634.3,1.24762229]
[1736096894007,0.41293708,3634.4,3634.3,1.24762229]
[1736096895198,2.1636493,3634.4,3634.3,5.32483501]
[1736096895404,2.1636493,3634.4,3634.3,5.57253501]
[1736096896912,3.24547396,3634.5,3634.4,0.24769]
[1736096901514,0.41290529,3634.6,3634.4,0.24769]
[1736096901705,4.99182341,3634.5,3634.4,0.24769]
[1736096902904,0.24768,3634.5,3634.4,0.24769]
[1736096903304,0.24769,3634.5,3634.3,0.24769]
[1736096903501,0.24769,3634.5,3634.4,0.99992229]
[1736096903711,0.24769,3634.5,3634.4,1.24761229]
[1736096904609,0.24769,3634.5,3634.4,0.99992229]
[1736096905408,0.66059529,3634.5,3634.4,0.99992229]
[1736096906015,0.66058529,3634.5,3634.4,0.99992229]
[1736096906214,1.09098529,3634.5,3634.4,0.99992229]
[1736096906715,5.31728856,3634.5,3634.4,0.99992229]
[1736096908017,1.09098529,3634.5,3634.4,0.99992229]
[1736096909408,0.67808,3634.5,3634.4,0.99992229]
[1736096910814,10.73174753,3634.5,3634.4,0.99992229]
[1736096916519,5.31769988,3634.5,3634.4,0.99992229]
[1736096917512,0.67808,3634.5,3634.4,0.99992229]
[1736096918909,5.31769988,3634.5,3634.4,0.99992229]
[1736096920427,10.73273873,3634.5,3634.4,0.99992229]
[1736096923531,10.30233873,3634.5,3634.4,1.24761229]
[1736096924038,4.88729988,3634.5,3634.4,0.99992229]
[1736096924226,4.88729988,3634.5,3634.4,1.24761229]
[1736096925838,4.99272617,3634.5,3634.4,5.57252501]
[1736096927240,4.99272617,3634.5,3634.4,5.27002461]
[1736096927241,0.24768,3634.5,3634.4,5.27002461]
[1736096927834,4.57982088,3634.6,3634.5,0.24768]
[1736096928030,4.33214088,3634.6,3634.5,0.24768]
[1736096928840,4.74504617,3634.6,3634.5,4.57941986]
[1736096929042,4.99272617,3634.6,3634.5,4.57941986]
[1736096932742,4.74504617,3634.6,3634.5,0.24768]
[1736096932944,4.99272617,3634.6,3634.5,0.24768]
[1736096933744,4.74504617,3634.6,3634.4,5.33166215]
[1736096933939,0.24768,3634.5,3634.4,5.57934215]
[1736096934139,0.24768,3634.5,3634.4,1.24760229]
[1736096934736,0.66058529,3634.6,3634.5,0.24768]
[1736096936341,0.24768,3634.5,3634.4,1.24761229]
[1736096937044,0.24768,3634.5,3634.4,7.73828964]
[1736096937844,0.24768,3634.6,3634.5,0.24768]
[1736096938143,0.24768,3634.5,3634.4,5.57834195]
[1736096938746,0.24768,3634.6,3634.5,0.24768]
[1736096938945,0.24768,3634.6,3634.5,1.24760229]
[1736096939335,0.24768,3634.6,3634.5,0.99992229]
[1736096940645,4.99272658,3634.6,3634.5,0.99992229]
[1736096943142,0.6605857,3634.6,3634.5,0.99992229]
[1736096944653,0.24768,3634.5,3634.4,4.33072966]
[1736096944848,0.66588,3634.5,3634.4,4.33072966]
[1736096945350,0.8311057,3634.5,3634.3,6.40465195]
[1736096945550,0.68619,3634.4,3634.3,6.40465195]
[1736096946953,4.34611562,3634.4,3634.3,6.40465195]
[1736096948559,5.43123658,3634.4,3634.3,2.07392229]
[1736096949756,5.01833088,3634.4,3634.3,2.07392229]
[1736096951056,5.43123658,3634.4,3634.3,1.074]
[1736096951257,5.43123658,3634.4,3634.3,2.07392229]
[1736096954164,5.43123658,3634.4,3634.3,2.32162229]
[1736096955051,5.18354658,3634.4,3634.3,2.32162229]
[1736096955254,5.18354658,3634.4,3634.3,6.65235195]
[1736096955255,1.0990957,3634.4,3634.3,6.65235195]
[1736096955755,0.8514057,3634.4,3634.3,6.65235195]
[1736096957658,0.8514057,3634.4,3634.3,2.32162229]
[1736096958962,0.8514057,3634.4,3634.3,6.65235195]
[1736096961358,3.68539383,3634.4,3634.3,6.34466976]
[1736096961960,3.93308383,3634.4,3634.3,6.34466976]
[1736096962156,3.68539383,3634.4,3634.3,6.34466976]
[1736096963266,3.24689383,3634.4,3634.3,6.34466976]
[1736096963765,3.24689383,3634.4,3634.3,5.27066976]
[1736096964165,3.24689383,3634.4,3634.3,11.76134711]
[1736096965859,3.65980644,3634.4,3634.3,11.76134711]
[1736096966064,3.65980644,3634.4,3634.3,12.17064711]
[1736096966269,3.65980644,3634.4,3634.3,12.58744711]
[1736096967260,3.65980644,3634.4,3634.3,6.09676976]
[1736096967464,3.65980644,3634.5,3634.4,0.24769]
[1736096967661,3.65980644,3634.5,3634.4,1.24761229]
[1736096968866,4.33214088,3634.5,3634.4,5.33158482]
[1736096969066,4.33214088,3634.5,3634.4,5.57927482]
[1736096971463,4.74505349,3634.5,3634.4,5.57927482]
[1736096975369,0.41291261,3634.5,3634.4,5.57927482]
[1736096976568,3.66018203,3634.5,3634.4,11.76904623]
[1736096977975,3.24726942,3634.5,3634.4,11.76904623]
[1736096982379,3.66018203,3634.5,3634.4,5.27155243]
[1736096983979,0.41291261,3634.5,3634.4,5.57908927]
[1736096984476,0.66059261,3634.5,3634.4,5.57908927]
[1736096984875,0.41291261,3634.5,3634.4,5.57908927]
[1736096985074,4.33214088,3634.6,3634.4,5.57908927]
[1736096985075,4.57982088,3634.6,3634.4,5.57908927]
[1736096985781,4.57982088,3634.6,3634.5,0.24768]
[1736096985978,4.57982088,3634.6,3634.5,0.68838]
[1736096987873,4.99272299,3634.6,3634.5,0.68838]
[1736096990979,0.66058211,3634.6,3634.5,4.71223478]
[1736096998592,0.66058211,3634.6,3634.5,4.46455478]
[1736096999288,0.66058211,3634.6,3634.5,4.71223478]
[1736096999700,4.99272299,3634.6,3634.5,4.71223478]
[1736097000992,4.99272299,3634.6,3634.5,11.20972858]
[1736097002993,4.99272299,3634.6,3634.5,10.52134858]
[1736097003196,4.99272299,3634.6,3634.5,12.59527087]
[1736097004002,4.99272299,3634.6,3634.5,6.09777707]
[1736097006400,4.99272299,3634.6,3634.5,6.50707707]
[1736097006791,4.88475318,3634.6,3634.5,6.81727755]
[1736097007704,5.32825318,3634.6,3634.5,6.81727755]
[1736097008402,0.69118,3634.6,3634.5,6.81727755]
[1736097008799,1.10258,3634.6,3634.5,6.81727755]
[1736097009600,5.73965318,3634.6,3634.5,5.33397755]
[1736097011497,5.73965318,3634.6,3634.5,5.58165755]
[1736097014519,5.73965318,3634.6,3634.5,5.33397755]
[1736097014808,5.84530011,3634.6,3634.5,11.52404702]
[1736097016415,5.432398,3634.6,3634.5,11.52404702]
[1736097017922,5.84530011,3634.6,3634.5,11.52404702]
[1736097020621,5.84530011,3634.6,3634.5,5.02655322]
[1736097022017,11.15443113,3634.6,3634.5,0.99992229]
[1736097022227,10.71093113,3634.6,3634.5,1.24760229]
[1736097023525,0.65908,3634.6,3634.5,5.58187259]
[1736097023723,0.65908,3634.6,3634.5,5.33419259]
[1736097024522,1.07198211,3634.6,3634.5,5.33419259]
[1736097025823,5.2942981,3634.6,3634.5,0.99992229]
[1736097026325,5.2942981,3634.6,3634.5,1.24760229]
[1736097028922,0.41290211,3634.6,3634.5,1.24760229]
[1736097029427,0.66058211,3634.6,3634.5,1.24760229]
[1736097029926,5.66271885,3634.6,3634.5,1.24760229]
[1736097031223,10.29770189,3634.6,3634.5,1.24760229]
[1736097032327,10.05002189,3634.6,3634.5,1.24760229]
[1736097033231,10.29770189,3634.6,3634.5,1.24760229]
[1736097034831,10.05002189,3634.6,3634.5,1.24760229]
[1736097036324,10.29770189,3634.6,3634.5,1.24760229]
[1736097036524,0.66058211,3634.6,3634.5,5.58187259]
[1736097036925,0.41290211,3634.6,3634.5,5.58187259]
[1736097037536,0.24768,3634.6,3634.5,1.24760229]
[1736097039140,0.66058211,3634.6,3634.5,1.24760229]
[1736097040431,4.73970503,3634.6,3634.5,5.58187259]
[1736097041531,4.73970503,3634.6,3634.5,5.27293264]
[1736097043030,4.73970503,3634.6,3634.5,11.77042644]
[1736097043235,0.41290211,3634.6,3634.5,11.77042644]
[1736097044438,5.41503885,3634.7,3634.5,5.33269091]
[1736097044737,5.41503885,3634.7,3634.6,0.24768]
[1736097044939,5.41503885,3634.7,3634.6,0.67338]
[1736097047134,4.63505679,3634.7,3634.6,0.67338]
[1736097051642,0.41290211,3634.7,3634.6,4.69748224]
[1736097052739,3.24460065,3634.8,3634.6,4.44980224]
[1736097053046,3.24460065,3634.8,3634.7,1.24759229]
[1736097054342,3.24460065,3634.8,3634.7,5.27169453]
[1736097056942,2.16239224,3634.8,3634.7,11.7680978]
[1736097058449,2.16239224,3634.9,3634.8,0.24766]
[1736097058746,2.16239224,3634.9,3634.8,1.10186]
[1736097060149,0.41283755,3634.9,3634.8,1.10186]
[1736097062744,3.65359806,3634.9,3634.8,1.10186]
[1736097065254,3.24076051,3634.9,3634.8,4.30966]
[1736097065543,3.24076051,3634.9,3634.8,1.10186]
[1736097065759,3.24076051,3634.9,3634.8,4.30966]
[1736097066748,7.31459432,3635.0,3634.9,0.24766]
[1736097066949,7.31459432,3635.0,3634.9,2.32058229]
[1736097067147,7.31459432,3635.0,3634.9,2.73488229]
[1736097067354,2.16038812,3635.0,3634.9,2.73488229]
[1736097068752,0.64609415,3635.4,3634.9,15.15877698]
[1736097069050,2.59018812,3635.5,3635.3,4.20772229]
[1736097069250,2.59018812,3635.5,3635.4,0.24762]
[1736097071648,0.4298,3635.5,3635.4,0.24762]
[1736097073848,2.60708812,3635.6,3635.3,4.61812229]
[1736097073849,2.16038812,3635.6,3635.3,4.61812229]
[1736097074054,2.16038812,3635.6,3635.5,1.24754229]
[1736097074254,2.58118812,3635.7,3635.6,0.24761]
[1736097074449,2.58118812,3635.7,3635.6,1.32061]
[1736097074655,2.58118812,3635.7,3635.6,1.76511]
[1736097075746,0.4208,3635.7,3635.6,1.76511]
[1736097077156,2.16038812,3635.8,3635.6,1.5175]
[1736097077452,2.16038812,3635.8,3635.7,0.2476]
[1736097078252,2.16038812,3635.8,3635.7,1.24752229]
[1736097078757,8.00009809,3635.9,3635.8,0.2476]
[1736097081258,5.83970997,3635.9,3635.8,0.2476]
[1736097082657,6.2524652,3635.9,3635.8,0.2476]
[1736097084656,6.5000552,3635.9,3635.8,0.2476]
[1736097087157,6.2524652,3635.9,3635.8,0.2476]
[1736097087461,6.5000552,3635.9,3635.8,0.2476]
[1736097089362,6.08729997,3635.9,3635.8,0.2476]
[1736097089760,6.08729997,3635.9,3635.8,1.24752229]
[1736097090966,5.83970997,3635.9,3635.8,1.24752229]
[1736097094862,6.08729997,3635.9,3635.8,1.24752229]
[1736097095066,5.83970997,3635.9,3635.8,1.24752229]
[1736097097561,9.48800123,3635.9,3635.8,1.24752229]
[1736097098669,9.06000123,3635.9,3635.8,1.24752229]
[1736097099873,3.64829126,3635.9,3635.8,1.24752229]
[1736097100769,2.15864747,3635.9,3635.8,1.24752229]
[1736097101272,2.40623747,3635.9,3635.6,1.69202229]
[1736097101566,0.4336,3635.8,3635.7,0.2476]
[1736097102177,4.08189871,3635.8,3635.7,0.2476]
[1736097103072,4.08189871,3635.8,3635.6,0.4445]
[1736097103276,4.08189871,3635.8,3635.7,0.99992229]
[1736097103667,3.48312848,3635.9,3635.7,0.99992229]
[1736097103870,3.23553848,3635.9,3635.8,1.3196]
[1736097104070,3.23553848,3635.9,3635.8,1.072]
[1736097104471,3.23553848,3635.9,3635.8,1.9155]
[1736097104671,3.23553848,3635.9,3635.8,2.1631]
[1736097105270,0.24758,3636.0,3635.8,2.1631]
[1736097105479,0.24758,3636.0,3635.9,0.99992229]
[1736097105776,2.15974375,3636.1,3635.9,0.99992229]
[1736097106076,2.15974375,3636.1,3636.0,0.24758]
[1736097106370,2.15974375,3636.1,3636.0,0.67768]
[1736097106965,2.15974375,3636.1,3636.0,0.4301]
[1736097107168,2.40731375,3636.1,3636.0,0.4301]
[1736097107578,0.24758,3636.0,3635.9,4.32381322]
[1736097107869,4.32688,3636.0,3635.9,3.65021322]
[1736097108076,0.2476,3635.8,3635.7,6.22913305]
[1736097108573,0.99992229,3635.9,3635.5,0.99992229]
[1736097108778,0.24761,3635.6,3635.5,0.99992229]
[1736097110787,0.66038115,3635.6,3635.5,0.99992229]
[1736097111781,4.99058386,3635.6,3635.5,0.99992229]
[1736097115287,4.74297386,3635.6,3635.5,0.99992229]
[1736097115486,4.74297386,3635.6,3635.5,1.68514229]
[1736097116479,4.74297386,3635.6,3635.5,2.68506458]
[1736097117087,7.99889948,3635.7,3635.6,0.24761]
[1736097118590,2.16140836,3635.7,3635.6,0.24761]
[1736097120191,2.16140836,3636.2,3635.6,11.77772624]
[1736097120494,2.16140836,3636.2,3636.1,3.45537]
[1736097120692,2.16140836,3636.2,3636.1,4.52737]
[1736097121491,0.24755,3636.5,3636.2,0.24757]
[1736097121492,2.16140836,3636.3,3636.2,0.24757]
[1736097121795,2.16140836,3636.3,3636.2,1.10357]
[1736097121991,2.16140836,3636.3,3636.2,2.10349229]
[1736097122888,2.16140836,3636.4,3636.2,2.10349229]
[1736097123089,2.16140836,3636.4,3636.2,1.85592229]
[1736097123287,2.16140836,3636.4,3636.3,0.24756]
[1736097125692,2.40895836,3636.5,3636.3,0.24756]
[1736097125996,2.40895836,3636.5,3636.4,0.99992229]
[1736097126483,2.65835836,3636.5,3636.4,0.99992229]
[1736097127294,3.73906255,3636.5,3636.4,0.99992229]
[1736097127787,3.73906255,3636.5,3636.4,1.24747229]
[1736097127988,3.24211255,3636.5,3636.4,1.24747229]
[1736097128987,3.48966255,3636.5,3636.4,1.24747229]
[1736097129395,3.24211255,3636.5,3636.4,1.24747229]
[1736097129590,3.48966255,3636.5,3636.4,1.24747229]
[1736097130193,0.24755,3636.5,3636.4,1.24747229]
[1736097130400,3.48966255,3636.6,3636.4,1.24747229]
[1736097130695,3.48965255,3636.6,3636.4,1.24747229]
[1736097130895,3.24211255,3636.6,3636.4,0.99992229]
[1736097131285,3.48965255,3636.6,3636.5,0.24755]
[1736097131489,3.24211255,3636.6,3636.5,0.24755]
[1736097132287,3.48965255,3636.6,3636.5,0.24755]
[1736097133303,3.24211255,3636.6,3636.5,0.24755]
[1736097133798,3.48965255,3636.6,3636.5,0.24755]
[1736097134396,2.40612681,3636.6,3636.5,0.24755]
[1736097134794,2.15858681,3636.6,3636.5,0.24755]
[1736097135394,2.15858681,3636.6,3636.5,4.45527229]
[1736097135803,2.15858681,3636.8,3636.5,4.20772229]
[1736097135995,2.15858681,3636.8,3636.7,1.24745229]